[Event "DVM U12w 2024"]
[Site "Bad Homburg"]
[Date "2024.12.27"]
[Round "2"]
[White "Noennig, Lotte"]
[Black "Mandziuk, Varvara"]
[Result "1-0"]
[ECO "C54"]
[WhiteElo "1635"]
[BlackElo "1160"]
[Annotator "NA RC"]
[PlyCount "56"]
[EventDate "2024.12.23"]
[EventType "team-tourn"]
[EventRounds "7"]
[EventCountry "GER"]
[SourceTitle "playchess.com"]
[Source "ChessBase"]
[SourceQuality "1"]
[TimeControl "40/5400+30:1800+30"]

1. e4 {[%emt 0:00:04]} e5 {[%emt 0:00:08]} 2. Nf3 {[%emt 0:00:12]} Nc6 {[%emt 0:00:09]} 3. Bc4 {[%emt 0:00:15]} Bc5 {[%emt 0:00:08]} 4. c3 {[%emt 0:00:29]} Nf6 {[%emt 0:00:08]} 5. d4 {[%emt 0:00:13]} exd4 {[%emt 0:00:08]} 6. cxd4 {[%emt 0:00:25]} Bb4+ {[%emt 0:00:09]} 7. Bd2 {[%emt 0:00:43]} Nxe4 {[%emt 0:00:52]} 8. Bxb4 {[%emt 0:00:36]} Nxb4 {[%emt 0:00:18]} 9. Bxf7+ {[%emt 0:00:17]} Kxf7 {[%emt 0:04:40]} 10. Qb3+ {[%emt 0:00:22]} Ke8 {[%emt 0:00:15]} 11. Qxb4 {[%emt 0:01:35]} d5 {[%emt 0:00:05]} 12. O-O {[%emt 0:03:32]} Qd6 {[%emt 0:05:05]} 13. Qb5+ {[%emt 0:05:01]} c6 {[%emt 0:04:52]} 14. Qe2 {[%emt 0:02:33]} Qg6 {[%emt 0:01:21]} 15. Ne5 {[%emt 0:02:53]} Qg5 {[%emt 0:02:43]} 16. f3 {[%emt 0:02:12]} Nd6 {[%emt 0:08:51]} 17. Ng6+ {[%emt 0:06:17]} Kd8 {[%emt 0:00:22]} 18. Nxh8 {[%emt 0:01:34]} Bh3 {[%emt 0:00:36]} 19. Nc3 {[%emt 0:04:23]} Kd7 {[%emt 0:00:39]} 20. f4 {[%emt 0:05:21]} Qg4 {[%emt 0:01:51]} 21. Rf3 {[%emt 0:02:47]} Re8 {[%emt 0:00:53]} 22. Qf2 {[%emt 0:02:02]} Ne4 {[%emt 0:03:42]} 23. Nxe4 {[%emt 0:02:09]} dxe4 {[%emt 0:00:13]} 24. Rxh3 {[%emt 0:00:41]} Rxh8 {[%emt 0:00:12]} 25. Qg3 {[%emt 0:02:11]} Qxg3 {[%emt 0:00:21]} 26. Rxg3 {[%emt 0:00:00]} g6 {[%emt 0:00:07]} 27. Re1 {[%emt 0:00:17]} Rf8 {[%emt 0:00:10]} 28. Rxe4 {[%emt 0:00:22]} Rh8 {[%emt 0:00:50]} 1-0

[Event "DVM U12w 2024"]
[Site "Bad Homburg"]
[Date "2024.12.27"]
[Round "2"]
[White "Klymenko, Mariia"]
[Black "Busch, Lara Sophie"]
[Result "1/2-1/2"]
[ECO "C22"]
[WhiteElo "1625"]
[BlackElo "1625"]
[Annotator "NA RC"]
[PlyCount "43"]
[EventDate "2024.12.23"]
[EventType "team-tourn"]
[EventRounds "7"]
[EventCountry "GER"]
[SourceTitle "playchess.com"]
[Source "ChessBase"]
[SourceQuality "1"]
[TimeControl "40/5400+30:1800+30"]

1. e4 {[%emt 0:00:02]} e5 {[%emt 0:00:09]} 2. d4 {[%emt 0:00:04]} exd4 {[%emt 0:00:15]} 3. Qxd4 {[%emt 0:00:05]} Nc6 {[%emt 0:00:36]} 4. Qd3 {[%emt 0:00:04]} Bc5 {[%emt 0:04:11]} 5. Nc3 {[%emt 0:00:38]} Nf6 {[%emt 0:02:23]} 6. Bf4 {[%emt 0:01:57]} O-O {[%emt 0:10:24]} 7. f3 {[%emt 0:02:04]} a5 {[%emt 0:04:12]} 8. g4 {[%emt 0:03:09]} Re8 {[%emt 0:05:27]} 9. O-O-O {[%emt 0:03:48]} d6 {[%emt 0:03:07]} 10. h4 {[%emt 0:01:35]} Be6 {[%emt 0:12:09]} 11. a3 {[%emt 0:08:20]} Qd7 {[%emt 0:06:01]} 12. Be2 {[%emt 0:02:08]} Nd4 {[%emt 0:02:08]} 13. h5 {[%emt 0:02:55]} Nxe2+ {[%emt 0:05:08]} 14. Ngxe2 {[%emt 0:01:19]} Reb8 {[%emt 0:05:20]} 15. g5 {[%emt 0:01:56]} Ne8 {[%emt 0:00:13]} 16. g6 {[%emt 0:07:27]} h6 {[%emt 0:02:41]} 17. gxf7+ {[%emt 0:05:22]} Bxf7 {[%emt 0:00:20]} 18. e5 {[%emt 0:01:35]} b5 {[%emt 0:01:38]} 19. Ne4 {[%emt 0:01:32]} Bc4 {[%emt 0:06:47]} 20. Nxc5 {[%emt 0:06:55]} Qc6 {[%emt 0:05:40]} 21. Nd4 {[%emt 0:04:02]} Qxc5 {[%emt 0:00:44]} 22. Qf5 {[%emt 0:02:17]} 1/2-1/2

[Event "DVM U12w 2024"]
[Site "Bad Homburg"]
[Date "2024.12.27"]
[Round "2"]
[White "Subocz, Barbara"]
[Black "Rose, Malina Rita"]
[Result "1/2-1/2"]
[ECO "C01"]
[WhiteElo "1623"]
[BlackElo "1503"]
[Annotator "NA RC"]
[PlyCount "54"]
[EventDate "2024.12.23"]
[EventType "team-tourn"]
[EventRounds "7"]
[EventCountry "GER"]
[SourceTitle "playchess.com"]
[Source "ChessBase"]
[SourceQuality "1"]
[TimeControl "40/5400+30:1800+30"]

1. e4 {[%emt 0:00:06]} e6 {[%emt 0:00:09]} 2. d4 {[%emt 0:00:05]} d5 {[%emt 0:00:11]} 3. exd5 {[%emt 0:00:16]} exd5 {[%emt 0:00:07]} 4. Bd3 {[%emt 0:00:07]} Nc6 {[%emt 0:00:13]} 5. c3 {[%emt 0:00:17]} Nf6 {[%emt 0:00:24]} 6. Bf4 {[%emt 0:00:19]} Bd6 {[%emt 0:00:24]} 7. Bxd6 {[%emt 0:07:29]} Qxd6 {[%emt 0:00:19]} 8. Nf3 {[%emt 0:00:45]} Be6 {[%emt 0:07:47]} 9. Na3 {[%emt 0:06:45]} a6 {[%emt 0:02:40]} 10. c4 {[%emt 0:02:32]} Qb4+ {[%emt 0:03:06]} 11. Qd2 {[%emt 0:06:13]} Qxd2+ {[%emt 0:00:17]} 12. Kxd2 {[%emt 0:02:36]} O-O-O {[%emt 0:04:30]} 13. Rad1 {[%emt 0:03:11]} dxc4 {[%emt 0:01:59]} 14. Nxc4 {[%emt 0:01:10]} Nxd4 {[%emt 0:01:13]} 15. Kc1 {[%emt 0:04:44]} Nxf3 {[%emt 0:02:29]} 16. gxf3 {[%emt 0:00:20]} Bxc4 {[%emt 0:06:12]} 17. Bxc4 {[%emt 0:00:17]} Rxd1+ {[%emt 0:00:14]} 18. Rxd1 {[%emt 0:00:06]} Rf8 {[%emt 0:00:30]} 19. Rg1 {[%emt 0:01:31]} g6 {[%emt 0:00:29]} 20. f4 {[%emt 0:00:50]} Ne4 {[%emt 0:02:22]} 21. f3 {[%emt 0:01:28]} Nd6 {[%emt 0:01:39]} 22. Bb3 {[%emt 0:01:09]} f5 {[%emt 0:01:10]} 23. h4 {[%emt 0:00:44]} Kd7 {[%emt 0:05:57]} 24. h5 {[%emt 0:00:48]} Rf6 {[%emt 0:00:26]} 25. Rg5 {[%emt 0:00:38]} Ke7 {[%emt 0:08:40]} 26. Bg8 {[%emt 0:00:28]} gxh5 {[%emt 0:00:20]} 27. Rxh5 {[%emt 0:00:16]} h6 {[%emt 0:00:40]} 1/2-1/2

[Event "DVM U12w 2024"]
[Site "Bad Homburg"]
[Date "2024.12.27"]
[Round "2"]
[White "Fruth, Julia"]
[Black "Hendler, Felicitas"]
[Result "1-0"]
[ECO "B38"]
[WhiteElo "1614"]
[BlackElo "1610"]
[Annotator "NA RC"]
[PlyCount "37"]
[EventDate "2024.12.23"]
[EventType "team-tourn"]
[EventRounds "7"]
[EventCountry "GER"]
[SourceTitle "playchess.com"]
[Source "ChessBase"]
[SourceQuality "1"]
[TimeControl "40/5400+30:1800+30"]

1. e4 {[%emt 0:00:03]} c5 {[%emt 0:00:08]} 2. Nf3 {[%emt 0:00:04]} d6 {[%emt 0:00:27]} 3. d4 {[%emt 0:00:07]} cxd4 {[%emt 0:00:04]} 4. Nxd4 {[%emt 0:00:09]} Nf6 {[%emt 0:00:20]} 5. f3 {[%emt 0:00:15]} g6 {[%emt 0:00:17]} 6. c4 {[%emt 0:00:49]} Bg7 {[%emt 0:02:17]} 7. Be3 {[%emt 0:00:42]} O-O {[%emt 0:00:22]} 8. Nc3 {[%emt 0:00:42]} Nc6 {[%emt 0:02:35]} 9. Be2 {[%emt 0:01:19]} Bd7 {[%emt 0:05:26]} 10. O-O {[%emt 0:01:04]} Rc8 {[%emt 0:03:36]} 11. Qd2 {[%emt 0:01:38]} Ne8 {[%emt 0:04:49]} 12. Nxc6 {[%emt 0:04:13]} Bxc6 {[%emt 0:01:13]} 13. Bxa7 {[%emt 0:01:22]} Nc7 {[%emt 0:05:35]} 14. Bb6 {[%emt 0:01:19]} Qd7 {[%emt 0:02:01]} 15. b4 {[%emt 0:01:26]} Na8 {[%emt 0:09:14]} 16. Be3 {[%emt 0:02:05]} Qc7 {[%emt 0:01:14]} 17. Rac1 {[%emt 0:02:29]} Rfd8 {[%emt 0:04:17]} 18. b5 {[%emt 0:00:52]} Bd7 {[%emt 0:00:27]} 19. Nd5 {[%emt 0:00:58]} 1-0

[Event "DVM U12w 2024"]
[Site "Bad Homburg"]
[Date "2024.12.27"]
[Round "2"]
[White "Sobczak, Zuzanna"]
[Black "Nehrukumar, Rithika"]
[Result "1-0"]
[ECO "C50"]
[WhiteElo "1598"]
[BlackElo "1147"]
[Annotator "NA RC"]
[PlyCount "29"]
[EventDate "2024.12.23"]
[EventType "team-tourn"]
[EventRounds "7"]
[EventCountry "GER"]
[SourceTitle "playchess.com"]
[Source "ChessBase"]
[SourceQuality "1"]
[TimeControl "40/5400+30:1800+30"]

1. e4 {[%emt 0:00:02]} e5 {[%emt 0:00:04]} 2. Nf3 {[%emt 0:00:05]} Nc6 {[%emt 0:00:06]} 3. Bc4 {[%emt 0:00:07]} Bc5 {[%emt 0:00:51]} 4. O-O {[%emt 0:00:09]} Nf6 {[%emt 0:00:05]} 5. Nc3 {[%emt 0:00:38]} O-O {[%emt 0:00:13]} 6. d3 {[%emt 0:00:08]} h6 {[%emt 0:00:06]} 7. Be3 {[%emt 0:00:17]} Bb6 {[%emt 0:00:09]} 8. d4 {[%emt 0:00:38]} Nxe4 {[%emt 0:03:02]} 9. Nxe4 {[%emt 0:00:47]} d5 {[%emt 0:00:14]} 10. Bxd5 {[%emt 0:02:18]} Qxd5 {[%emt 0:00:21]} 11. Nc3 {[%emt 0:00:07]} Qd8 {[%emt 0:00:41]} 12. d5 {[%emt 0:01:14]} Na5 {[%emt 0:03:24]} 13. Bxb6 {[%emt 0:03:20]} axb6 {[%emt 0:00:26]} 14. Nxe5 {[%emt 0:00:14]} Re8 {[%emt 0:00:59]} 15. Re1 {[%emt 0:01:45]} 1-0

[Event "DVM U12w 2024"]
[Site "Bad Homburg"]
[Date "2024.12.27"]
[Round "2"]
[White "Elsayed Esam, Sally"]
[Black "Kuznetsova, Sofia"]
[Result "1-0"]
[ECO "D02"]
[WhiteElo "1563"]
[BlackElo "926"]
[Annotator "NA RC"]
[PlyCount "85"]
[EventDate "2024.12.23"]
[EventType "team-tourn"]
[EventRounds "7"]
[EventCountry "GER"]
[SourceTitle "playchess.com"]
[Source "ChessBase"]
[SourceQuality "1"]
[TimeControl "40/5400+30:1800+30"]

1. d4 {[%emt 0:00:01]} d5 {[%emt 0:00:05]} 2. Nf3 {[%emt 0:00:16]} Nc6 {[%emt 0:00:11]} 3. g3 {[%emt 0:00:17]} Bf5 {[%emt 0:00:14]} 4. Bg2 {[%emt 0:00:12]} Nf6 {[%emt 0:00:24]} 5. O-O {[%emt 0:00:09]} e6 {[%emt 0:00:08]} 6. e3 {[%emt 0:00:30]} h6 {[%emt 0:00:55]} 7. b3 {[%emt 0:00:12]} Bb4 {[%emt 0:00:12]} 8. Bb2 {[%emt 0:00:48]} O-O {[%emt 0:00:09]} 9. c3 {[%emt 0:00:34]} Bd6 {[%emt 0:00:14]} 10. Nbd2 {[%emt 0:00:17]} Re8 {[%emt 0:00:48]} 11. c4 {[%emt 0:00:49]} Bd3 {[%emt 0:07:37]} 12. Re1 {[%emt 0:01:00]} Nb4 {[%emt 0:00:10]} 13. Bf1 {[%emt 0:04:53]} Nc2 {[%emt 0:02:51]} 14. Bxd3 {[%emt 0:00:16]} Nxe1 {[%emt 0:00:18]} 15. Qxe1 {[%emt 0:00:06]} c6 {[%emt 0:00:13]} 16. e4 {[%emt 0:04:47]} dxe4 {[%emt 0:04:07]} 17. Nxe4 {[%emt 0:00:39]} Nxe4 {[%emt 0:00:24]} 18. Qxe4 {[%emt 0:01:58]} f5 {[%emt 0:01:25]} 19. Qe3 {[%emt 0:04:38]} b6 {[%emt 0:03:03]} 20. c5 {[%emt 0:06:18]} bxc5 {[%emt 0:01:09]} 21. dxc5 {[%emt 0:00:18]} Bxc5 {[%emt 0:00:09]} 22. Qxc5 {[%emt 0:00:57]} Qxd3 {[%emt 0:00:10]} 23. Qe5 {[%emt 0:01:27]} Re7 {[%emt 0:00:58]} 24. Nh4 {[%emt 0:00:18]} Qd5 {[%emt 0:02:34]} 25. Ng6 {[%emt 0:00:36]} Qxe5 {[%emt 0:00:47]} 26. Nxe7+ {[%emt 0:00:07]} Kf7 {[%emt 0:00:52]} 27. Bxe5 {[%emt 0:00:08]} Kxe7 {[%emt 0:00:08]} 28. Bxg7 {[%emt 0:01:58]} h5 {[%emt 0:00:51]} 29. Rd1 {[%emt 0:00:26]} Rg8 {[%emt 0:00:56]} 30. Bd4 {[%emt 0:00:24]} Rd8 {[%emt 0:00:46]} 31. Bc5+ {[%emt 0:00:13]} Ke8 {[%emt 0:00:19]} 32. Rxd8+ {[%emt 0:00:10]} Kxd8 {[%emt 0:00:05]} 33. Bxa7 {[%emt 0:00:20]} Kc7 {[%emt 0:00:09]} 34. Kg2 {[%emt 0:00:33]} Kb7 {[%emt 0:00:08]} 35. Be3 {[%emt 0:00:08]} Ka6 {[%emt 0:00:06]} 36. Kh3 {[%emt 0:00:12]} Kb5 {[%emt 0:00:13]} 37. Kh4 {[%emt 0:00:39]} Kb4 {[%emt 0:00:10]} 38. Kxh5 {[%emt 0:00:10]} Ka3 {[%emt 0:00:04]} 39. h4 {[%emt 0:00:15]} Kxa2 {[%emt 0:01:08]} 40. Kg6 {[%emt 0:00:11]} Kxb3 {[%emt 0:00:09]} 41. h5 {[%emt 0:30:09]} Kb4 {[%emt 0:30:06]} 42. h6 {[%emt 0:00:07]} c5 {[%emt 0:00:03]} 43. Bxc5+ {[%emt 0:00:10]} 1-0

[Event "DVM U12w 2024"]
[Site "Bad Homburg"]
[Date "2024.12.27"]
[Round "2"]
[White "Kuebart, Ela Marie"]
[Black "Suryaprakash, Smrithi"]
[Result "1-0"]
[ECO "A48"]
[WhiteElo "1561"]
[BlackElo "1527"]
[Annotator "NA RC"]
[PlyCount "119"]
[EventDate "2024.12.23"]
[EventType "team-tourn"]
[EventRounds "7"]
[EventCountry "GER"]
[SourceTitle "playchess.com"]
[Source "ChessBase"]
[SourceQuality "1"]
[TimeControl "40/5400+30:1800+30"]

1. d4 {[%emt 0:00:03]} Nf6 {[%emt 0:00:14]} 2. Nf3 {[%emt 0:00:33]} g6 {[%emt 0:00:06]} 3. e3 {[%emt 0:00:07]} Bg7 {[%emt 0:00:24]} 4. Bd3 {[%emt 0:00:13]} O-O {[%emt 0:00:37]} 5. O-O {[%emt 0:00:05]} d6 {[%emt 0:01:14]} 6. Re1 {[%emt 0:00:35]} Nbd7 {[%emt 0:03:27]} 7. c3 {[%emt 0:00:20]} e5 {[%emt 0:09:31]} 8. Qc2 {[%emt 0:05:52]} Qe7 {[%emt 0:02:11]} 9. Nbd2 {[%emt 0:04:42]} Nb6 {[%emt 0:09:42]} 10. e4 {[%emt 0:01:01]} Rd8 {[%emt 0:05:32]} 11. d5 {[%emt 0:03:14]} c6 {[%emt 0:01:34]} 12. c4 {[%emt 0:00:12]} cxd5 {[%emt 0:00:52]} 13. cxd5 {[%emt 0:00:15]} Bd7 {[%emt 0:01:36]} 14. Nb3 {[%emt 0:05:30]} Rac8 {[%emt 0:09:30]} 15. Qe2 {[%emt 0:01:07]} Bg4 {[%emt 0:03:12]} 16. Be3 {[%emt 0:02:35]} Nfxd5 {[%emt 0:02:13]} 17. exd5 {[%emt 0:03:08]} e4 {[%emt 0:00:25]} 18. Bxb6 {[%emt 0:00:17]} axb6 {[%emt 0:00:37]} 19. Qxe4 {[%emt 0:03:56]} Qxe4 {[%emt 0:00:21]} 20. Bxe4 {[%emt 0:01:36]} Bxb2 {[%emt 0:00:48]} 21. Rab1 {[%emt 0:00:45]} Bc3 {[%emt 0:00:41]} 22. Re3 {[%emt 0:02:24]} Bg7 {[%emt 0:09:21]} 23. Nbd2 {[%emt 0:01:36]} Re8 {[%emt 0:02:00]} 24. h3 {[%emt 0:01:36]} Bxf3 {[%emt 0:01:54]} 25. Bxf3 {[%emt 0:03:40]} Bd4 {[%emt 0:01:51]} 26. Re4 {[%emt 0:04:11]} Bc5 {[%emt 0:01:28]} 27. Rbe1 {[%emt 0:01:58]} Rxe4 {[%emt 0:02:30]} 28. Nxe4 {[%emt 0:01:06]} Kf8 {[%emt 0:02:23]} 29. Rb1 {[%emt 0:05:23]} Rc7 {[%emt 0:00:25]} 30. Kf1 {[%emt 0:02:05]} f5 {[%emt 0:02:20]} 31. Nxc5 {[%emt 0:01:52]} bxc5 {[%emt 0:00:32]} 32. Be2 {[%emt 0:01:00]} c4 {[%emt 0:02:48]} 33. Rc1 {[%emt 0:03:04]} b5 {[%emt 0:04:22]} 34. a4 {[%emt 0:05:28]} bxa4 {[%emt 0:02:23]} 35. Bxc4 {[%emt 0:00:24]} a3 {[%emt 0:00:26]} 36. Ke2 {[%emt 0:03:22]} a2 {[%emt 0:01:36]} 37. Kd3 {[%emt 0:00:39]} Ra7 {[%emt 0:03:00]} 38. Ra1 {[%emt 0:00:28]} Ra3+ {[%emt 0:00:38]} 39. Kd4 {[%emt 0:01:08]} Ra7 {[%emt 0:03:11]} 40. Rxa2 {[%emt 0:01:15]} Rd7 {[%emt 0:00:26]} 41. Ra8+ {[%emt 0:30:58]} Kg7 {[%emt 0:30:21]} 42. Re8 {[%emt 0:03:39]} Kf7 {[%emt 0:00:58]} 43. Re3 {[%emt 0:01:11]} Rd8 {[%emt 0:02:18]} 44. Rf3 {[%emt 0:01:26]} Kf6 {[%emt 0:04:20]} 45. h4 {[%emt 0:01:00]} Re8 {[%emt 0:02:31]} 46. Bd3 {[%emt 0:01:58]} Re5 {[%emt 0:02:27]} 47. Re3 {[%emt 0:01:09]} Rxe3 {[%emt 0:01:03]} 48. fxe3 {[%emt 0:01:11]} h6 {[%emt 0:00:31]} 49. e4 {[%emt 0:08:46]} f4 {[%emt 0:01:22]} 50. e5+ {[%emt 0:02:21]} dxe5+ {[%emt 0:00:44]} 51. Ke4 {[%emt 0:00:08]} g5 {[%emt 0:00:00]} 52. hxg5+ {[%emt 0:00:00]} hxg5 {[%emt 0:00:00]} 53. d6 {[%emt 0:00:00]} Ke6 {[%emt 0:00:00]} 54. d7 {[%emt 0:00:00]} Kxd7 {[%emt 0:00:00]} 55. Kxe5 {[%emt 0:00:00]} Kc6 {[%emt 0:00:00]} 56. Kf5 {[%emt 0:00:00]} Kd5 {[%emt 0:00:00]} 57. Kxg5 {[%emt 0:00:00]} Kd4 {[%emt 0:01:51]} 58. Kxf4 {[%emt 0:00:00]} Kxd3 {[%emt 0:00:19]} 59. g4 {[%emt 0:00:00]} Kd4 {[%emt 0:00:00]} 60. Kf5 {[%emt 0:00:00]} 1-0

[Event "DVM U12w 2024"]
[Site "Bad Homburg"]
[Date "2024.12.27"]
[Round "2"]
[White "Brandt, Hilda"]
[Black "Winkler, Helena"]
[Result "0-1"]
[ECO "C55"]
[WhiteElo "1556"]
[BlackElo "778"]
[Annotator "NA RC"]
[PlyCount "72"]
[EventDate "2024.12.23"]
[EventType "team-tourn"]
[EventRounds "7"]
[EventCountry "GER"]
[SourceTitle "playchess.com"]
[Source "ChessBase"]
[SourceQuality "1"]
[TimeControl "40/5400+30:1800+30"]

1. e4 {[%emt 0:00:05]} e5 {[%emt 0:00:04]} 2. Nf3 {[%emt 0:00:07]} Nf6 {[%emt 0:00:08]} 3. Nc3 {[%emt 0:00:09]} d6 {[%emt 0:00:07]} 4. Bc4 {[%emt 0:00:08]} Be7 {[%emt 0:00:17]} 5. d3 {[%emt 0:00:29]} O-O {[%emt 0:00:09]} 6. O-O {[%emt 0:00:04]} Nc6 {[%emt 0:00:10]} 7. Be3 {[%emt 0:00:36]} Be6 {[%emt 0:00:16]} 8. Bxe6 {[%emt 0:00:21]} fxe6 {[%emt 0:00:01]} 9. Ng5 {[%emt 0:00:39]} Qd7 {[%emt 0:00:20]} 10. a3 {[%emt 0:00:56]} h6 {[%emt 0:00:14]} 11. Nf3 {[%emt 0:00:48]} d5 {[%emt 0:00:14]} 12. exd5 {[%emt 0:00:14]} exd5 {[%emt 0:00:19]} 13. Bd2 {[%emt 0:00:58]} Rfe8 {[%emt 0:00:23]} 14. Re1 {[%emt 0:00:09]} Rad8 {[%emt 0:00:08]} 15. Nxe5 {[%emt 0:00:27]} Nxe5 {[%emt 0:00:18]} 16. Rxe5 {[%emt 0:00:11]} c6 {[%emt 0:00:31]} 17. Qc1 {[%emt 0:02:55]} Bd6 {[%emt 0:00:29]} 18. Rxe8+ {[%emt 0:00:48]} Rxe8 {[%emt 0:00:26]} 19. Qf1 {[%emt 0:00:37]} d4 {[%emt 0:00:39]} 20. Ne2 {[%emt 0:00:22]} c5 {[%emt 0:00:38]} 21. Re1 {[%emt 0:00:30]} Ng4 {[%emt 0:00:28]} 22. g3 {[%emt 0:00:36]} Ne5 {[%emt 0:00:24]} 23. Nf4 {[%emt 0:00:14]} Nf3+ {[%emt 0:00:14]} 24. Kg2 {[%emt 0:00:20]} Nxe1+ {[%emt 0:00:14]} 25. Bxe1 {[%emt 0:00:09]} Bxf4 {[%emt 0:00:17]} 26. gxf4 {[%emt 0:00:08]} Qg4+ {[%emt 0:00:18]} 27. Kh1 {[%emt 0:00:08]} Re6 {[%emt 0:00:25]} 28. f3 {[%emt 0:00:34]} Qxf4 {[%emt 0:00:22]} 29. Bg3 {[%emt 0:00:30]} Qf5 {[%emt 0:00:27]} 30. Qd1 {[%emt 0:00:21]} Rf6 {[%emt 0:00:29]} 31. Bh4 {[%emt 0:01:05]} Qxf3+ {[%emt 0:00:12]} 32. Qxf3 {[%emt 0:00:21]} Rxf3 {[%emt 0:00:19]} 33. Be7 {[%emt 0:00:12]} Rf2 {[%emt 0:00:06]} 34. Bxc5 {[%emt 0:00:08]} Rxc2 {[%emt 0:00:09]} 35. Bxa7 {[%emt 0:00:08]} Rxb2 {[%emt 0:01:25]} 36. Bxd4 {[%emt 0:00:10]} Rd2 {[%emt 0:00:13]} 0-1

[Event "DVM U12w 2024"]
[Site "Bad Homburg"]
[Date "2024.12.27"]
[Round "2"]
[White "Winkler, Frida"]
[Black "Mersmann, Jasmin"]
[Result "0-1"]
[ECO "C53"]
[WhiteElo "1555"]
[BlackElo "1527"]
[Annotator "NA RC"]
[PlyCount "65"]
[EventDate "2024.12.23"]
[EventType "team-tourn"]
[EventRounds "7"]
[EventCountry "GER"]
[SourceTitle "playchess.com"]
[Source "ChessBase"]
[SourceQuality "1"]
[TimeControl "40/5400+30:1800+30"]

1. e4 {[%emt 0:00:06]} e5 {[%emt 0:00:02]} 2. Nf3 {[%emt 0:00:11]} Nc6 {[%emt 0:00:05]} 3. Bc4 {[%emt 0:00:08]} Bc5 {[%emt 0:00:23]} 4. c3 {[%emt 0:00:08]} d6 {[%emt 0:00:10]} 5. a4 {[%emt 0:00:25]} a6 {[%emt 0:00:34]} 6. d4 {[%emt 0:00:35]} exd4 {[%emt 0:00:33]} 7. cxd4 {[%emt 0:00:11]} Bb4+ {[%emt 0:00:28]} 8. Bd2 {[%emt 0:00:42]} Bxd2+ {[%emt 0:00:16]} 9. Nbxd2 {[%emt 0:00:19]} Nf6 {[%emt 0:00:28]} 10. h3 {[%emt 0:01:46]} O-O {[%emt 0:00:45]} 11. O-O {[%emt 0:04:10]} Re8 {[%emt 0:01:10]} 12. Re1 {[%emt 0:01:22]} b6 {[%emt 0:03:17]} 13. Qb3 {[%emt 0:04:47]} Re7 {[%emt 0:01:58]} 14. Ng5 {[%emt 0:06:07]} Qe8 {[%emt 0:04:08]} 15. e5 {[%emt 0:01:46]} Nd7 {[%emt 0:34:08]} 16. Bxf7+ {[%emt 0:01:01]} Rxf7 {[%emt 0:01:40]} 17. Qxf7+ {[%emt 0:00:21]} Qxf7 {[%emt 0:00:31]} 18. Nxf7 {[%emt 0:00:13]} Nxd4 {[%emt 0:03:08]} 19. e6 {[%emt 0:05:41]} Nf6 {[%emt 0:01:03]} 20. Nd8 {[%emt 0:01:38]} Nc2 {[%emt 0:03:06]} 21. e7 {[%emt 0:01:30]} Bd7 {[%emt 0:01:56]} 22. Rec1 {[%emt 0:01:13]} Nxa1 {[%emt 0:00:47]} 23. Rc3 {[%emt 0:00:14]} c5 24. Rxc5 {[%emt 0:00:30]} Bxa4 {[%emt 0:01:38]} 25. Rc7 {[%emt 0:03:07]} Nd5 {[%emt 0:03:05]} 26. Nb7 {[%emt 0:01:20]} b5 {[%emt 0:01:54]} 27. Rc4 {[%emt 0:00:17]} Re8 {[%emt 0:00:32]} 28. Re4 {[%emt 0:01:23]} Rxe7 {[%emt 0:00:34]} 29. Nxd6 {[%emt 0:01:16]} Nf6 {[%emt 0:00:43]} 30. Rd4 {[%emt 0:02:03]} Rd7 {[%emt 0:00:19]} 31. Nc8 Rd6 32. Rxd6 {[%emt 0:03:49]} Nd7 {[%emt 0:00:38]} 33. Rxd7 {[%emt 0:00:19]} 0-1

[Event "DVM U12w 2024"]
[Site "Bad Homburg"]
[Date "2024.12.27"]
[Round "2"]
[White "Ramien, Eva"]
[Black "Schindler, Amilia"]
[Result "1-0"]
[ECO "C50"]
[WhiteElo "1542"]
[BlackElo "790"]
[Annotator "NA RC"]
[PlyCount "115"]
[EventDate "2024.12.23"]
[EventType "team-tourn"]
[EventRounds "7"]
[EventCountry "GER"]
[SourceTitle "playchess.com"]
[Source "ChessBase"]
[SourceQuality "1"]
[TimeControl "40/5400+30:1800+30"]

1. e4 {[%emt 0:00:02]} e5 {[%emt 0:00:04]} 2. Nf3 {[%emt 0:00:08]} Nc6 {[%emt 0:00:05]} 3. Bc4 {[%emt 0:00:11]} Nf6 {[%emt 0:00:08]} 4. Nc3 {[%emt 0:00:09]} Bc5 {[%emt 0:00:07]} 5. d3 {[%emt 0:00:10]} d6 {[%emt 0:00:08]} 6. Bg5 {[%emt 0:00:23]} Bg4 {[%emt 0:00:08]} 7. Nd5 {[%emt 0:01:20]} Nd4 {[%emt 0:00:30]} 8. Nxf6+ {[%emt 0:00:30]} gxf6 {[%emt 0:00:20]} 9. Be3 {[%emt 0:05:02]} Nxf3+ {[%emt 0:00:12]} 10. gxf3 {[%emt 0:00:01]} Bh3 {[%emt 0:00:23]} 11. Bxc5 {[%emt 0:00:31]} dxc5 {[%emt 0:00:30]} 12. Qd2 {[%emt 0:00:30]} Qd7 {[%emt 0:00:30]} 13. a3 {[%emt 0:00:30]} O-O-O {[%emt 0:00:30]} 14. O-O-O {[%emt 0:00:30]} Qd4 {[%emt 0:00:00]} 15. Qe3 {[%emt 0:03:41]} Qd6 {[%emt 0:00:26]} 16. Bxf7 {[%emt 0:00:43]} Qb6 {[%emt 0:00:51]} 17. Bh5 {[%emt 0:02:00]} Rd6 {[%emt 0:00:36]} 18. Bg4+ Bxg4 19. fxg4 {[%emt 0:01:59]} Qb5 {[%emt 0:01:07]} 20. Qd2 {[%emt 0:01:41]} Rb6 {[%emt 0:00:15]} 21. Qc3 {[%emt 0:02:12]} Rd8 {[%emt 0:03:36]} 22. Qb3 {[%emt 0:01:52]} Qc6 {[%emt 0:00:35]} 23. Qc3 {[%emt 0:01:16]} Rd4 {[%emt 0:00:20]} 24. h4 {[%emt 0:16:21]} c4 {[%emt 0:00:28]} 25. Rd2 {[%emt 0:09:17]} cxd3 {[%emt 0:00:36]} 26. Qxc6 {[%emt 0:07:06]} Rxc6 {[%emt 0:00:08]} 27. Re1 {[%emt 0:02:44]} Rdc4 {[%emt 0:00:30]} 28. c3 {[%emt 0:00:43]} Rd6 {[%emt 0:04:01]} 29. Re3 {[%emt 0:00:32]} h6 {[%emt 0:02:36]} 30. Rexd3 {[%emt 0:00:13]} Rxd3 {[%emt 0:00:07]} 31. Rxd3 {[%emt 0:00:23]} Rxe4 {[%emt 0:00:11]} 32. f3 {[%emt 0:04:47]} Re1+ {[%emt 0:00:17]} 33. Kd2 {[%emt 0:03:36]} Rh1 {[%emt 0:00:11]} 34. h5 {[%emt 0:00:55]} c5 {[%emt 0:00:18]} 35. Rd6 {[%emt 0:00:35]} Rh2+ {[%emt 0:00:37]} 36. Kc1 {[%emt 0:00:25]} Rh1+ {[%emt 0:00:03]} 37. Kc2 {[%emt 0:00:13]} b5 {[%emt 0:00:22]} 38. Rc6+ {[%emt 0:01:23]} Kb8 {[%emt 0:00:13]} 39. Rxc5 {[%emt 0:00:18]} a6 {[%emt 0:00:18]} 40. Rc6 {[%emt 0:00:50]} Kb7 {[%emt 0:00:09]} 41. Rxf6 {[%emt 0:30:44]} Rh2+ {[%emt 0:30:14]} 42. Kb3 {[%emt 0:00:44]} a5 {[%emt 0:00:41]} 43. Re6 {[%emt 0:01:23]} a4+ {[%emt 0:00:16]} 44. Ka2 {[%emt 0:03:27]} Rh4 {[%emt 0:03:07]} 45. Rxe5 {[%emt 0:00:35]} Kb6 {[%emt 0:00:25]} 46. Rf5 {[%emt 0:01:59]} Rh1 {[%emt 0:00:35]} 47. f4 {[%emt 0:01:47]} Rh4 {[%emt 0:00:17]} 48. Rf6+ {[%emt 0:00:45]} Kc5 {[%emt 0:00:06]} 49. Rxh6 {[%emt 0:06:35]} Rxg4 {[%emt 0:00:20]} 50. Rf6 {[%emt 0:00:32]} Rh4 {[%emt 0:00:26]} 51. h6 {[%emt 0:00:53]} Kc4 {[%emt 0:00:42]} 52. f5 {[%emt 0:01:37]} Kd3 {[%emt 0:00:07]} 53. Rb6 {[%emt 0:06:42]} Kc2 {[%emt 0:00:22]} 54. Rxb5 {[%emt 0:00:49]} Kc1 {[%emt 0:00:12]} 55. f6 {[%emt 0:01:28]} Rxh6 {[%emt 0:00:27]} 56. f7 {[%emt 0:01:44]} Rf6 {[%emt 0:00:05]} 57. Rb7 {[%emt 0:00:36]} Rf2 {[%emt 0:00:25]} 58. c4 {[%emt 0:01:20]} 1-0